bitfinex/quotes_ETHUSD_20241024
["timestamp","ask_amount","ask_price","bid_price","bid_amount"]
[1729778650829,0.36988054,2530.4,2530.3,4.91048]
[1729778651397,6.87621206,2530.5,2530.3,0.9584]
[1729778651553,10.82807206,2530.5,2530.3,0.9584]
[1729778651763,3.95194,2530.4,2530.3,0.9584]
[1729778652084,3.95194,2530.4,2530.0,1e-05]
[1729778652085,3.95241,2530.1,2530.0,1e-05]
[1729778652383,7.24645137,2530.1,2530.0,1e-05]
[1729778655055,7.24633698,2530.1,2530.0,1e-05]
[1729778655559,0.36962492,2530.1,2530.0,1e-05]
[1729778655757,6.87661206,2530.2,2530.0,0.97681]
[1729778656271,0.36964987,2530.1,2530.0,0.97681]
[1729778656699,0.36964987,2530.1,2530.0,1e-05]
[1729778656700,4.32205987,2530.1,2530.0,1e-05]
[1729778656986,5.44192706,2530.1,2530.0,1e-05]
[1729778657356,0.36964987,2530.1,2530.0,1e-05]
[1729778657553,3.29395193,2530.1,2530.0,1e-05]
[1729778658504,3.95196,2530.4,2530.0,1e-05]
[1729778658790,2.92430206,2530.2,2530.0,1e-05]
[1729778660047,6.87667206,2530.2,2530.0,1e-05]
[1729778660794,2.92430206,2530.2,2530.0,1e-05]
[1729778661889,3.95241,2530.1,2530.0,1e-05]
[1729778662092,4.32187419,2530.1,2530.0,1e-05]
[1729778662299,3.95241,2530.1,2530.0,1e-05]
[1729778662583,4.32186967,2530.1,2530.0,1e-05]
[1729778662822,9.78916794,2530.1,2530.0,1e-05]
[1729778663579,6.86486588,2530.1,2530.0,1e-05]
[1729778663784,6.31486588,2530.1,2530.0,1e-05]
[1729778664158,9.23916794,2530.1,2530.0,1e-05]
[1729778664360,9.23916794,2530.1,2529.8,0.25]
[1729778664361,3.95397,2529.1,2528.8,1.40500517]
[1729778664589,6.87858206,2528.9,2528.8,0.41190517]
[1729778664760,6.87858206,2528.9,2528.5,0.1242288]
[1729778664761,3.95475,2528.6,2528.5,0.1242288]
[1729778664962,11.72861173,2528.6,2528.5,0.1242288]
[1729778665186,3.95569,2528.1,2527.7,0.9737]
[1729778665391,11.72864173,2528.6,2527.5,1.728244]
[1729778665392,2.92430206,2527.8,2527.5,1.728244]
[1729778665859,3.95617,2527.7,2527.5,1.728244]
[1729778666062,6.88062206,2527.6,2527.5,1.728244]
[1729778666307,3.95632,2527.6,2527.5,1.728244]
[1729778666453,6.88062206,2527.6,2527.5,1.728244]
[1729778666649,7.96430127,2527.6,2527.5,1.728244]
[1729778667101,7.96430127,2527.6,2527.5,1.678244]
[1729778667102,8.51430127,2527.6,2527.5,1.678244]
[1729778667256,5.58999921,2527.6,2527.5,1.678244]
[1729778668788,9.57569921,2527.6,2527.5,1.678244]
[1729778669930,5.06937921,2527.6,2527.5,1.678244]
[1729778670137,3.0,2527.6,2527.5,1.678244]
[1729778670799,3.9562,2527.7,2527.5,1.678244]
[1729778671001,3.55,2527.8,2527.5,1.678244]
[1729778671002,0.55,2527.8,2527.5,1.678244]
[1729778671229,3.95626,2527.7,2527.5,1.678244]
[1729778671587,3.0,2527.8,2527.5,1.678244]
[1729778672327,3.95585,2527.9,2527.5,1.678244]
[1729778672633,3.95578,2528.0,2527.5,1.678244]
[1729778672935,3.0,2528.0,2527.5,6.1981874]
[1729778673130,3.95595,2527.9,2527.5,2.2417374]
[1729778673299,6.95573,2528.0,2527.5,1.678244]
[1729778674236,3.95595,2527.9,2527.5,1.678244]
[1729778674732,7.91132,2528.1,2527.5,5.634714]
[1729778674915,7.63187958,2528.5,2527.5,5.634714]
[1729778674916,4.9286,2528.5,2527.5,5.634614]
[1729778675234,3.95547,2528.2,2527.5,6.1980754]
[1729778675463,3.95517,2528.4,2527.8,3.95598]
[1729778675663,0.9736,2528.5,2527.9,7.91149]
[1729778675664,3.955,2528.5,2527.9,7.91149]
[1729778675863,3.95486,2528.6,2527.9,3.95572]
[1729778676069,4.91444,2528.8,2527.7,4.03524993]
[1729778676070,3.95454,2528.8,2527.7,4.03524993]
[1729778676379,3.95439,2528.9,2528.4,3.95505]
[1729778676550,3.95439,2528.9,2528.4,4.94405]
[1729778676721,3.95445,2528.8,2528.4,0.989]
[1729778676922,3.95399,2529.1,2528.4,0.989]
[1729778677234,3.95359,2529.4,2528.5,0.07909982]
[1729778677461,7.90719,2529.4,2528.8,3.95436]
[1729778677649,3.95359,2529.4,2528.8,7.90871]
[1729778677847,7.90718,2529.4,2528.8,3.95435]
[1729778678054,7.90718,2529.4,2528.8,4.745249]
[1729778678224,0.9427,2531.2,2529.3,0.9753]
[1729778678429,4.01948431,2531.0,2530.4,3.95192]
[1729778678661,0.4100899,2530.9,2530.5,3.95164]
[1729778678865,3.95001,2531.7,2530.8,3.95131]
[1729778679031,4.56885738,2531.6,2531.0,3.95088]
[1729778679236,7.90039,2531.6,2531.0,3.95088]
[1729778679472,3.95018,2531.6,2530.8,3.9512]
[1729778679841,3.95024,2531.5,2531.0,3.95098]
[1729778680039,3.95038,2531.4,2530.8,3.9512]
[1729778680271,3.95038,2531.4,2530.8,5.50569596]
[1729778680771,3.95038,2531.4,2530.7,0.9653]
[1729778680772,3.95038,2531.4,2530.7,4.91673]
[1729778680932,3.95038,2531.4,2530.7,0.9653]
[1729778681128,3.94991,2531.7,2530.7,0.9653]
[1729778681335,3.95066,2531.3,2530.7,0.9653]
[1729778681546,3.95071,2531.2,2530.7,0.9653]
[1729778681770,3.95091,2531.1,2530.7,0.9653]
[1729778681968,3.95118,2530.9,2530.3,4.8882]
[1729778682173,3.95113,2531.0,2530.4,3.95191]
[1729778682332,0.55,2531.2,2530.3,0.9362]
[1729778682669,3.95141,2530.8,2530.3,0.9362]
[1729778682911,3.95167,2530.6,2530.3,0.9362]
[1729778683070,3.95198,2530.4,2529.9,0.9419]
[1729778683772,0.395167,2530.5,2529.9,4.89451]
[1729778683958,4.346947,2530.5,2529.9,4.89451]
[1729778684129,3.95159,2530.7,2530.1,3.95237]
[1729778685070,3.95165,2530.6,2530.1,3.95237]
[1729778685231,3.95165,2530.6,2529.9,4.89449]
[1729778685427,3.95177,2530.6,2529.9,8.84712]
[1729778685627,3.95177,2530.6,2530.0,3.95251]
[1729778685628,4.346947,2530.6,2530.0,3.95251]
[1729778685869,4.346937,2530.6,2530.0,3.95251]
[1729778686169,4.346927,2530.6,2529.9,4.89449]
[1729778686478,3.95196,2530.4,2529.9,0.9419]
[1729778686663,4.7818397,2530.4,2529.9,0.9419]
[1729778687880,4.7818397,2530.4,2529.9,4.8946]
[1729778689376,4.346897,2530.6,2529.9,4.89453]
[1729778689846,4.346897,2530.6,2530.0,3.95246]
[1729778690185,3.95196,2530.4,2529.9,4.89453]
[1729778690365,3.95168,2530.6,2530.1,3.9524]
[1729778690598,6.95162,2530.7,2530.1,7.90459]
[1729778690783,3.95181,2530.5,2530.0,3.95254]
[1729778691116,3.95196,2530.4,2529.9,0.9419]
[1729778691274,3.95196,2530.4,2529.9,4.89461]
[1729778691872,3.9521,2530.3,2529.9,0.9419]
[1729778692072,3.95235,2530.2,2529.9,0.9419]
[1729778692832,4.090297,2530.7,2529.9,0.9419]
[1729778692833,3.95174,2530.6,2530.1,3.95231]
[1729778693127,3.95181,2530.5,2530.0,3.95253]
[1729778693621,3.95181,2530.5,2529.9,5.384022]
[1729778693808,3.95181,2530.5,2530.0,3.95255]
[1729778694112,3.95181,2530.5,2529.9,5.384022]
[1729778694294,3.95202,2530.4,2529.9,4.89454]
[1729778694505,7.90406,2530.4,2529.9,0.9419]
[1729778694677,3.95202,2530.4,2529.9,0.9419]
[1729778694985,3.95237,2530.2,2529.6,3.95308]
[1729778695329,3.95286,2529.9,2529.5,0.9933]
[1729778695824,4.742967,2530.1,2529.5,4.9466]
[1729778696114,3.95273,2529.9,2529.5,0.9933]
[1729778696346,3.95252,2530.1,2529.6,3.95308]
[1729778696564,7.90436,2530.3,2529.7,3.95293]
[1729778696677,3.95214,2530.3,2529.9,3.95271]
[1729778696994,3.95214,2530.3,2529.8,7.90554]
[1729778697186,3.95188,2530.5,2529.9,3.95263]
[1729778697408,3.95188,2530.5,2529.8,3.95275]
[1729778697409,3.95203,2530.4,2529.8,3.95275]
[1729778697607,3.95229,2530.2,2529.7,3.953]
[1729778698227,4.17246758,2530.5,2529.5,0.9933]
[1729778698375,4.17246758,2530.5,2529.6,3.95315]
[1729778698376,3.95239,2530.2,2529.6,3.95315]
[1729778698582,7.90433,2530.3,2529.7,3.95291]
[1729778698801,3.95212,2530.3,2529.7,3.95291]
[1729778699417,3.95242,2530.1,2529.6,3.95319]
[1729778699650,3.95236,2530.2,2529.6,7.9063]
[1729778699920,3.95236,2530.2,2529.6,3.9531]
[1729778699921,3.95253,2530.1,2529.6,3.9531]
[1729778700216,3.95236,2530.2,2529.7,3.95292]
[1729778700377,0.495548,2530.5,2529.9,3.9527]
[1729778700577,0.495548,2530.5,2530.1,0.9351]
[1729778700813,3.95211,2530.3,2530.1,0.9351]
[1729778700988,3.95186,2530.5,2530.1,0.9351]
[1729778701396,7.90375,2530.5,2530.1,0.9351]
[1729778701599,7.90376,2530.5,2530.1,0.9351]
[1729778702324,3.95186,2530.5,2530.1,0.9351]
[1729778702524,3.95211,2530.3,2529.9,3.95271]
[1729778703017,8.298956,2530.5,2529.9,3.95272]
[1729778703219,4.347046,2530.5,2529.9,3.95272]
[1729778703427,3.95202,2530.4,2529.9,3.95272]
[1729778703628,4.347046,2530.5,2529.9,3.95272]
[1729778703780,3.95164,2530.6,2529.8,0.993]
[1729778703980,3.95125,2530.9,2530.3,3.95194]
[1729778704186,3.95164,2530.6,2530.1,3.95238]
[1729778704412,3.95146,2530.8,2530.2,3.95216]
[1729778704594,3.95148,2530.7,2530.2,3.95216]
[1729778704788,3.95116,2530.9,2530.3,3.95202]
[1729778704983,3.95116,2530.9,2530.5,1.0093]
[1729778704984,4.80661796,2530.9,2530.5,1.0093]
[1729778705315,3.95116,2530.9,2530.5,1.0093]
[1729778705477,3.95116,2530.9,2530.5,4.96106]
[1729778705682,3.95116,2530.9,2530.5,1.0093]
[1729778705878,7.90247,2530.9,2530.5,1.0093]
[1729778706078,3.95117,2530.9,2530.5,1.0093]
[1729778706279,0.9806,2531.0,2530.2,0.9939]
[1729778706498,3.95164,2530.6,2530.2,0.9939]
[1729778706710,3.95186,2530.5,2530.2,0.9939]
[1729778706900,3.95202,2530.4,2530.2,0.9939]
[1729778707326,7.62831958,2530.8,2529.9,3.95271]
[1729778707327,3.95219,2530.3,2529.9,0.933]
[1729778707486,3.95176,2530.6,2529.9,1.421593]
[1729778707684,3.95176,2530.6,2529.9,0.933]
[1729778708001,3.95176,2530.6,2530.0,3.95256]
[1729778708189,3.95178,2530.5,2530.0,3.95256]
[1729778708386,3.95196,2530.4,2529.9,4.8857]
[1729778708591,3.95178,2530.5,2530.0,3.95256]
[1729778708801,3.95156,2530.7,2530.0,0.883833]
[1729778709133,3.95189,2530.5,2530.0,3.95256]
[1729778709298,3.95189,2530.5,2529.9,0.933]
[1729778709299,3.95202,2530.4,2529.9,4.88567]
[1729778709499,3.9521,2530.3,2529.9,4.88567]
[1729778710027,3.9521,2530.3,2529.9,0.933]
[1729778710391,3.95237,2530.2,2529.9,0.933]
[1729778710741,3.95242,2530.1,2529.9,0.933]
[1729778710886,3.95256,2530.0,2529.9,0.933]
[1729778711090,3.95256,2530.0,2529.6,1.0075]
[1729778711343,3.95241,2530.1,2529.6,4.96062]
[1729778711689,3.95258,2530.0,2529.6,1.0075]
[1729778711923,3.95289,2529.8,2529.6,1.0075]
[1729778712329,4.742884,2530.1,2529.3,0.9644]
[1729778712632,4.742884,2530.1,2529.0,3.95402]
[1729778712633,3.95368,2529.3,2529.0,0.9644]
[1729778712785,3.95363,2529.4,2529.0,0.9644]
[1729778713002,3.9533,2529.6,2529.0,4.91845]
[1729778713206,7.90662,2529.6,2529.1,3.95394]
[1729778713516,7.90662,2529.6,2529.2,3.95379]
[1729778713517,3.95328,2529.6,2529.2,3.95379]
[1729778713702,3.95338,2529.5,2529.1,3.95397]
[1729778714137,3.95328,2529.6,2529.1,3.95389]
[1729778714737,3.95328,2529.6,2529.1,7.90778]
[1729778715118,3.95328,2529.6,2529.1,7.90777]
[1729778715437,3.95328,2529.6,2529.1,3.95388]
[1729778715602,3.95256,2530.0,2529.2,4.03278664]
[1729778715805,8.61672958,2530.2,2529.0,0.9644]
[1729778715806,3.95343,2529.5,2529.0,4.91846]
[1729778716015,3.95343,2529.5,2529.1,3.95389]
[1729778716745,3.95316,2529.7,2529.1,3.95389]
[1729778716941,3.95321,2529.6,2529.1,7.90778]
[1729778717183,3.95321,2529.6,2529.2,3.9538]
[1729778717366,3.95321,2529.6,2529.1,3.95388]
[1729778717663,3.95321,2529.6,2529.0,0.9644]
[1729778717664,1.757137,2529.6,2529.0,0.9644]
[1729778717862,3.95351,2529.4,2529.0,0.9644]
[1729778718332,3.95329,2529.6,2529.1,3.9539]
[1729778718523,3.95303,2529.7,2529.2,3.95367]
[1729778718721,3.790464,2530.1,2529.0,4.91842]
[1729778718722,3.95322,2529.6,2529.0,4.91842]
[1729778718973,3.95347,2529.5,2529.0,4.91842]
[1729778719324,3.95347,2529.5,2529.0,8.87248]
[1729778719525,3.95313,2529.7,2529.0,5.805658]
[1729778719859,3.95352,2529.4,2529.0,5.805748]
[1729778720023,3.95355,2529.4,2529.0,0.9644]
[1729778720227,7.90715,2529.4,2529.0,0.9644]
[1729778720517,3.95329,2529.6,2529.0,4.91839]
[1729778720660,3.95303,2529.7,2529.1,3.95392]
[1729778720976,3.67691958,2530.2,2529.1,3.95392]
[1729778720977,0.9174,2530.3,2529.5,3.95326]
[1729778721263,3.95289,2529.8,2529.4,3.9535]
[1729778721472,3.95312,2529.7,2529.2,0.9766]
[1729778721652,3.95328,2529.6,2529.2,0.9766]
[1729778721853,3.67691958,2529.9,2529.4,3.95336]
[1729778721854,3.95282,2529.9,2529.4,3.95336]
[1729778722163,3.95275,2529.9,2529.4,3.95335]
[1729778722398,3.95267,2530.0,2529.4,3.95335]
[1729778722399,3.95267,2530.0,2529.5,3.95333]
[1729778722525,3.95267,2530.0,2529.5,3.95323]
[1729778722726,3.95267,2530.0,2529.4,0.492995]
[1729778722953,3.95267,2530.0,2529.5,3.95335]
[1729778723155,7.90533,2530.0,2529.5,3.95335]
[1729778723340,3.95274,2529.9,2529.5,3.95335]
[1729778723955,3.95274,2529.9,2529.4,0.492995]
[1729778724136,3.95274,2529.9,2529.4,4.446475]
[1729778724339,3.95288,2529.8,2529.4,0.492995]
[1729778724539,3.95312,2529.7,2529.2,4.93033]
[1729778724771,4.91525,2530.0,2529.4,3.95347]
[1729778724939,3.95265,2530.0,2529.5,3.95322]
[1729778725277,3.95265,2530.0,2529.5,3.95333]
[1729778725489,3.95265,2530.0,2529.3,3.95352]
[1729778725490,3.95282,2529.9,2529.4,3.95348]
[1729778725834,3.95282,2529.9,2529.3,3.95352]
[1729778726031,3.95288,2529.8,2529.3,3.95352]
[1729778726340,3.95305,2529.7,2529.3,3.95352]
[1729778726528,3.95288,2529.8,2529.3,3.95355]
[1729778726727,6.88133787,2530.0,2529.4,3.95344]
[1729778726728,3.95273,2529.9,2529.4,3.95344]
[1729778726925,3.87793787,2530.3,2529.6,3.95311]
[1729778727131,3.87793787,2530.3,2529.7,4.92694]
[1729778727132,3.95242,2530.1,2529.7,4.92694]
[1729778727949,3.95228,2530.2,2529.7,4.92694]
[1729778728145,2.92863787,2530.3,2529.7,0.974]
[1729778728333,3.9528,2529.9,2529.7,0.974]
[1729778728731,3.95291,2529.8,2529.4,0.9703]
[1729778729166,3.95305,2529.7,2529.4,0.9703]
[1729778729351,3.95322,2529.6,2529.4,0.9703]
[1729778729673,3.95288,2529.8,2529.4,0.9703]
[1729778729990,7.90619,2529.7,2529.4,0.9703]
[1729778730505,3.95303,2529.7,2529.4,0.9703]
[1729778730702,3.9529,2529.8,2529.4,0.9703]
[1729778730875,3.9529,2529.8,2529.4,4.92379]
[1729778731253,7.9057,2529.9,2529.4,4.92371]
[1729778731438,3.95256,2530.0,2529.4,0.9703]
[1729778731636,3.95314,2529.7,2529.4,0.9703]
[1729778731864,3.95327,2529.6,2529.1,4.92157]
[1729778732479,0.488826,2529.9,2529.1,0.9677]
[1729778732705,0.488826,2529.9,2528.7,0.9766]
[1729778732706,3.9535,2529.4,2528.7,0.9766]
[1729778732876,3.95374,2529.3,2528.8,3.95435]
[1729778733075,3.95374,2529.3,2528.7,0.9766]
[1729778733368,3.95383,2529.2,2528.8,3.95441]
[1729778733774,0.790757,2529.2,2528.7,0.9766]
[1729778733974,2.92863787,2529.4,2528.7,0.9766]
[1729778733975,3.95413,2529.0,2528.7,0.9766]
[1729778734577,3.95431,2528.9,2528.3,1.0041]
[1729778734741,3.95437,2528.9,2528.4,3.95498]
[1729778735072,3.95413,2529.0,2528.5,3.95482]
[1729778735684,3.95431,2528.9,2528.5,3.95482]
[1729778736040,3.95413,2529.0,2528.6,3.95474]
[1729778736275,3.95366,2529.3,2528.7,3.95448]
[1729778736583,3.95388,2529.2,2528.8,3.95444]
[1729778736953,3.95397,2529.1,2528.7,4.88208]
[1729778737341,7.90804,2529.1,2528.7,4.88208]
[1729778737538,4.88175,2529.5,2528.1,0.02]
[1729778737539,4.60027078,2529.5,2528.1,0.01]
[1729778737781,3.95424,2529.0,2528.5,3.95489]
[1729778737948,4.96352708,2529.4,2528.4,3.95505]
[1729778737949,1.01002708,2529.4,2528.4,3.95505]
[1729778738146,3.95399,2529.1,2528.6,3.95466]
[1729778738490,3.95399,2529.1,2528.7,0.9589]
[1729778738861,3.95419,2529.0,2528.7,0.9589]
[1729778739458,8.698832,2529.1,2528.7,0.9589]
[1729778739659,4.744772,2529.1,2528.7,0.9589]
[1729778739994,8.698862,2529.1,2528.7,0.9589]
[1729778740310,3.95386,2529.2,2528.8,3.95437]
[1729778740502,3.95386,2529.2,2528.7,0.9589]
[1729778741590,3.95401,2529.1,2528.7,4.91347]
[1729778741790,3.95423,2529.0,2528.7,0.9589]
[1729778742428,3.95383,2529.2,2528.7,0.9589]
[1729778742690,3.95366,2529.3,2528.8,3.95443]
[1729778742900,3.95366,2529.3,2528.9,3.95428]
[1729778743122,3.95383,2529.2,2528.8,3.95443]
[1729778743393,3.95366,2529.3,2528.8,4.841158]
[1729778743554,7.90743,2529.3,2528.8,4.841158]
[1729778743755,3.95366,2529.3,2528.8,4.841138]
[1729778744004,3.9535,2529.4,2528.8,0.886798]
[1729778744208,3.95408,2529.1,2528.7,0.9589]
[1729778744354,3.95405,2529.1,2528.7,0.9589]
[1729778744557,7.90815,2529.1,2528.7,0.9589]
[1729778744757,3.95405,2529.1,2528.7,0.9589]
[1729778744959,3.95375,2529.3,2528.9,3.95419]
[1729778745171,4.88183,2529.5,2529.0,3.95406]
[1729778745361,3.9532,2529.6,2529.1,3.95382]
[1729778745631,3.0,2530.0,2529.3,3.95361]
[1729778745632,3.95278,2529.9,2529.3,3.95361]
[1729778745767,3.953,2529.8,2529.3,3.95363]
[1729778745964,3.95314,2529.7,2529.3,3.95363]
[1729778746161,0.9679,2530.0,2529.2,0.9566]
[1729778746162,3.95342,2529.5,2529.2,0.9566]
[1729778746480,3.95355,2529.4,2528.9,0.9962]
[1729778746681,3.95382,2529.2,2528.9,0.9962]
[1729778746893,3.95355,2529.4,2529.0,3.95406]
[1729778747074,3.95331,2529.6,2529.0,3.95406]
[1729778747075,3.95341,2529.5,2529.0,3.95411]
[1729778747276,3.95366,2529.3,2528.9,0.9962]
[1729778747661,3.95319,2529.6,2528.9,0.9962]
[1729778747866,3.95375,2529.3,2528.9,4.95041]
[1729778748102,3.95336,2529.5,2529.0,3.95401]
[1729778748277,3.95347,2529.5,2529.0,3.95401]
[1729778748598,3.95357,2529.4,2528.9,4.95041]
[1729778748814,3.95357,2529.4,2528.9,8.90462]
[1729778749021,3.95357,2529.4,2528.9,4.9504]
[1729778749181,3.95367,2529.3,2528.9,4.9504]
[1729778749713,7.9072,2529.4,2528.9,4.9504]
[1729778749866,3.95367,2529.3,2528.9,4.9504]
[1729778750062,3.95315,2529.7,2528.9,1.886687]
[1729778750378,4.60137078,2529.8,2528.9,0.9962]
[1729778750379,3.95384,2529.2,2528.9,0.9962]
[1729778750581,3.95384,2529.2,2528.7,3.95452]
[1729778751229,3.95384,2529.2,2528.7,3.95451]
[1729778751230,3.95398,2529.1,2528.7,3.95451]
[1729778751523,3.95398,2529.1,2528.6,0.9138]
[1729778751524,3.9542,2529.0,2528.6,0.9138]
[1729778751722,3.95439,2528.9,2528.6,0.9138]
[1729778752136,5.660441,2528.9,2528.3,3.9565]
[1729778752330,3.95469,2528.7,2528.3,0.9565]
[1729778752825,1.706051,2528.9,2528.3,0.9565]
[1729778753030,3.95462,2528.7,2528.3,0.9565]
[1729778753231,3.95497,2528.5,2528.0,8.88653]
[1729778753450,3.95497,2528.5,2528.1,3.95551]
[1729778753667,3.95497,2528.5,2528.0,4.93097]
[1729778753811,3.95505,2528.5,2528.0,0.9753]
[1729778754012,3.95544,2528.2,2527.7,0.06222727]
[1729778754235,4.94149,2528.4,2527.7,4.99359727]
[1729778754478,3.95529,2528.3,2527.8,3.95592]
[1729778754635,4.94149,2528.4,2527.8,3.95592]
[1729778754951,0.395505,2528.5,2528.1,3.95552]
[1729778755166,0.55,2528.6,2527.9,3.95575]
[1729778755473,3.956,2527.8,2527.5,1.678244]
[1729778755683,0.9227,2527.9,2527.5,1.678244]
[1729778755969,3.95632,2527.6,2527.5,1.678244]
[1729778756286,3.95617,2527.7,2527.5,1.678244]
[1729778756431,3.95602,2527.8,2527.5,1.678244]
[1729778756630,3.95619,2527.7,2527.5,1.678244]
[1729778756959,4.839681,2527.7,2527.5,1.678244]
[1729778757297,4.839651,2527.7,2527.5,1.678244]
[1729778757639,4.87868,2527.9,2527.5,1.678244]
[1729778757844,3.95602,2527.8,2527.5,1.678244]
[1729778758268,0.9227,2527.9,2527.5,1.678244]
[1729778758485,3.95594,2527.9,2527.5,1.678244]
[1729778758690,3.95573,2528.0,2527.5,1.678244]
[1729778758839,3.95573,2528.0,2527.6,4.01852974]
[1729778759045,3.95573,2528.0,2527.7,0.06222727]
[1729778759046,3.95594,2527.9,2527.7,0.06222727]
[1729778759442,3.956,2527.8,2527.7,0.06222727]
[1729778759651,7.91187,2527.9,2527.7,0.06222727]
[1729778760074,3.956,2527.8,2527.7,0.06222727]
[1729778760387,5.4393,2527.8,2527.7,0.06222727]
[1729778760599,6.467891,2527.8,2527.7,0.06222727]
[1729778760747,4.50632,2527.6,2527.5,1.678244]
[1729778762496,3.95632,2527.6,2527.5,1.678244]
[1729778762793,1.961891,2527.8,2527.5,1.678244]
[1729778762794,3.95602,2527.8,2527.5,1.678244]
[1729778762974,7.89069,2528.1,2527.5,1.678244]
[1729778763195,13.030964,2528.1,2527.6,3.95624]
[1729778763379,6.075274,2528.1,2527.6,3.95624]
[1729778763586,3.95572,2528.0,2527.6,3.95624]
[1729778763784,3.95572,2528.0,2527.5,1.678244]
[1729778763955,4.89055,2528.1,2527.6,3.9562]
[1729778764303,3.95547,2528.2,2527.7,3.95613]
[1729778764465,3.95562,2528.1,2527.6,4.01852974]
[1729778764663,3.95562,2528.1,2527.6,4.58813711]
[1729778764871,3.95555,2528.1,2527.6,4.58813711]
[1729778765198,3.95547,2528.2,2527.7,3.95615]
[1729778765367,3.95468,2528.7,2527.9,3.95582]
[1729778765368,0.966,2528.7,2527.9,3.95582]
[1729778765572,3.95507,2528.5,2528.0,3.95569]
[1729778765807,3.95475,2528.6,2528.1,3.95542]
[1729778765990,3.95494,2528.5,2528.1,3.95542]
[1729778766291,3.95469,2528.7,2528.0,3.95569]
[1729778766455,3.95498,2528.5,2528.0,3.95569]
[1729778766655,3.95498,2528.5,2528.1,0.84099843]
[1729778767297,3.95476,2528.6,2528.1,8.75195843]
[1729778767595,4.91895,2529.0,2528.3,0.9762]
[1729778767596,3.9544,2528.9,2528.3,0.9762]
[1729778767808,3.95469,2528.7,2528.3,0.9762]
[1729778768760,3.95469,2528.7,2528.3,4.93141]
[1729778769097,3.95469,2528.7,2528.3,1.94898184]
[1729778769282,3.95476,2528.6,2528.3,0.9762]
[1729778769502,3.95446,2528.8,2528.3,4.93132]
[1729778769699,3.9544,2528.9,2528.3,0.9762]
[1729778769911,3.95468,2528.7,2528.3,0.9762]
[1729778770437,3.95428,2528.9,2528.4,3.95494]
[1729778770724,3.95451,2528.8,2528.4,3.95494]
[1729778771212,3.95451,2528.8,2528.3,4.93135]
[1729778771427,4.91905,2529.0,2528.4,3.95504]
[1729778771618,3.95445,2528.8,2528.4,3.95504]
[1729778771909,3.9547,2528.7,2528.3,1.864862]
[1729778772112,3.95446,2528.8,2528.3,5.820012]
[1729778772319,4.91902,2529.0,2528.3,0.9762]
[1729778772320,0.9648,2529.0,2528.3,0.9762]
[1729778772491,3.95467,2528.7,2528.3,0.9762]
[1729778772690,3.95457,2528.8,2528.3,0.9762]
[1729778772898,3.9548,2528.6,2528.3,0.9762]
[1729778773088,3.95493,2528.5,2528.3,0.9762]
[1729778775088,3.95507,2528.4,2528.0,0.9588]
[1729778775313,7.90993,2528.5,2528.0,5.75579343]
[1729778775526,3.95524,2528.3,2528.0,0.9588]
[1729778776375,3.95509,2528.4,2528.0,0.9588]
[1729778776692,3.95476,2528.6,2528.1,3.95542]
[1729778777090,3.95498,2528.5,2528.1,3.95542]
[1729778777292,3.95498,2528.5,2528.0,0.9588]
[1729778777529,3.95517,2528.4,2528.0,0.9588]
[1729778777735,7.91038,2528.4,2528.0,0.9588]
[1729778777907,7.91098,2528.2,2527.8,0.917]
[1729778778225,3.95538,2528.2,2527.8,0.917]
[1729778778901,3.95555,2528.1,2527.8,0.917]
[1729778779824,7.91119,2528.1,2527.8,0.917]
[1729778780036,3.95533,2528.3,2527.8,0.917]
[1729778780332,3.95539,2528.2,2527.8,0.917]
[1729778780629,3.95533,2528.3,2527.8,4.87299]
[1729778780834,3.95533,2528.3,2527.9,3.95577]
[1729778782115,4.95429,2528.5,2527.9,3.95577]
[1729778782116,3.95507,2528.4,2528.0,3.95569]
[1729778782420,3.95484,2528.6,2528.3,0.918]
[1729778782812,10.80936258,2529.0,2528.0,0.918]
[1729778783013,3.95517,2528.4,2528.0,0.918]
[1729778783500,3.95539,2528.2,2528.0,0.918]
[1729778783695,7.9109,2528.2,2528.0,0.918]
[1729778783907,0.79109,2528.2,2527.7,0.9825]
[1729778784121,3.95515,2528.4,2527.9,3.95578]
[1729778784551,3.95515,2528.4,2527.9,7.91155]
[1729778784906,3.95515,2528.4,2527.9,7.91151]
[1729778785109,3.95475,2528.6,2527.7,4.93864]
[1729778785415,3.95577,2528.0,2527.7,0.9825]
[1729778786143,3.95554,2528.1,2527.7,0.9825]
[1729778786298,3.95531,2528.3,2527.7,0.9825]
[1729778786506,3.95531,2528.3,2527.8,3.956]
[1729778787019,3.95507,2528.4,2527.9,3.95574]
[1729778787348,3.95507,2528.4,2528.0,0.9184]
[1729778787530,3.95532,2528.3,2528.0,0.9184]
[1729778788284,3.95539,2528.2,2528.0,0.9184]
[1729778788451,3.95587,2527.9,2527.6,1.05052974]
[1729778788816,3.95538,2528.2,2527.6,0.06222974]
[1729778789003,0.74371926,2528.1,2527.6,1.05052974]
[1729778789341,3.95561,2528.1,2527.6,4.94454]
[1729778790004,3.9557,2528.0,2527.6,0.9883]
[1729778790207,3.9557,2528.0,2527.6,4.94455]
[1729778790442,3.9557,2528.0,2527.6,0.9883]
[1729778790843,3.9557,2528.0,2527.6,4.94461]
[1729778791050,3.95552,2528.2,2527.6,6.01045284]
[1729778791203,3.95532,2528.3,2527.8,3.95594]
[1729778791407,3.95541,2528.2,2527.7,7.91218]
[1729778791720,3.95541,2528.2,2527.7,3.95605]
[1729778791919,3.95541,2528.2,2527.6,2.05414284]
[1729778791920,0.490445,2528.5,2527.6,2.05414284]